Cogmind - Beta 10 X2 @@@ ROGUE MODE // 2020.06.28 @ 21:33:45 Player: Decinym Result: Destroyed by D-53 Grenadier with Mini Grenade Launcher Performance ------------- Evolutions (0) 0 Regions Visited (2) 400 Robots Destroyed (14) 70 Value Destroyed (318) 318 Prototype IDs (0) 0 Alien Tech Used (0) 0 Bonus (0) 0 TOTAL SCORE: 788 Bonus ------- None Cogmind --------- Core Integrity 0/250 Matter 300/300 Energy 75/100 System Corruption 0% Temperature Cool (292) Movement Core (300) Ox5 Location -10/Mines Parts ------- > --- POWER (1) -------- (None) > --- PROPULSION (2) --- (None) > --- UTILITY (2) ------ Small Storage Unit Medium Storage Unit > --- WEAPON (2) ------- Particle Cannon > --- INVENTORY (10) --- Ion Engine Ion Engine Aluminum Leg Compact Wheel Compact Wheel Heat Sink Hacking Suite Particle Cannon Peak State ------------ > --- POWER ------------ Ion Engine > --- PROPULSION ------- Aluminum Leg Aluminum Leg > --- UTILITY ---------- Small Storage Unit Medium Storage Unit > --- WEAPON ----------- Particle Cannon Particle Cannon > --- INVENTORY -------- Ion Engine Ion Engine Light Treads Light Treads Aluminum Leg Compact Wheel Compact Wheel Heat Sink Small Laser Particle Gun [Rating: 10] Favorites ----------- Power Ion Engine Engine Ion Engine Propulsion Aluminum Leg Leg Aluminum Leg Utility Small Storage Unit Storage Small Storage Unit Weapon Particle Cannon Energy Gun Medium Laser Energy Cannon Particle Cannon Ballistic Gun Light Assault Rifle Build | -11 -10 -10 ------- Run | Scr Mat Min Slots Evolved . | . . . Power . | . . . Propulsion . | . . . Utility . | . . . Weapon . | . . . Parts Attached 9 | . 8 1 Power 1 | . 1 . Engine 1 | . 1 . Core . | . . . Reactor . | . . . Propulsion 3 | . 3 . Treads . | . . . Leg 3 | . 3 . Wheel . | . . . Hover . | . . . Flight . | . . . Utility 1 | . 1 . Device . | . . . Storage 1 | . 1 . Processor . | . . . Hackware . | . . . Protection . | . . . Artifact . | . . . Weapon 4 | . 3 1 Energy Gun . | . . . Energy Cannon 3 | . 2 1 Ballistic Gun 1 | . 1 . Ballistic Cannon . | . . . Launcher . | . . . Special Weapon . | . . . Impact Weapon . | . . . Slashing Weapon . | . . . Piercing Weapon . | . . . Special Melee Weapon . | . . . Unidentified Prototypes . | . . . Parts Lost 8 | . 3 5 Power 2 | . 1 1 Propulsion 3 | . 1 2 Utility . | . . . Weapon 3 | . 1 2 Highest Loss Streak 5 | . 2 5 Average Slot Usage (%) 98 | . 98 98 Engine 13 | . 13 14 Leg 27 | . 27 26 Storage 28 | . 28 28 Energy Gun 4 | . 5 . Energy Cannon 10 | . 6 28 Ballistic Gun 13 | . 16 . Naked Turns . | . . . Heaviest Build 25 | 10 25 25 Greatest Support 20 | 20 20 20 Greatest Overweight (x) 1 | . 1 1 Average Overweight (x) . | . . 1 Largest Inventory Capacity 10 | . 10 10 Average Capacity 9 | . 9 10 Most Carried 10 | . 10 9 Average Carried 7 | . 7 8 Final Capacity 10 | 6 10 10 Final Carried 9 | 6 9 8 Class Distribution -------------------- 100% | Mutant Dominant Class ---------------- Mutant | -10/Materials Mutant | -10/Mines Resources | -11 -10 -10 ----------- Run | Scr Mat Min Matter Collected 348 | 200 148 . Remotely . | . . . Salvage Created 417 | . 372 45 Parts 21 | . 21 . Haulers Intercepted . | . . . Recyclers Shooed . | . . . Parts Field Recycled . | . . . Retrieved Matter . | . . . Parts Self-Destructed . | . . . Prevented . | . . . Kills | -11 -10 -10 ------- Run | Scr Mat Min Combat Hostiles Destroyed 11 | . 8 3 Guns 8 | . 8 . Cannons 3 | . . 3 Classes Destroyed 4 | . 3 1 Worker 1 | . 1 . Operator 2 | . 2 . Grunt 8 | . 8 . Assembled 3 | . . 3 Best Kill Streak 5 | . 5 3 Combat Bots Only 4 | . 4 3 Max Kills in Single Turn 1 | . 1 1 Gunslinging . | . . . Exploded . | . . . Melee . | . . . Uniques/NPCs Destroyed . | . . . Combat | -11 -10 -10 -------- Run | Scr Mat Min Damage Taken 1112 | . 487 625 Core 266 | . 118 148 Absorbed by Shields . | . . . Core Remaining (%) 100 | 100 . . Volleys Fired 44 | . 34 10 Largest 2 | . 2 2 Hottest 136 | . 136 136 Shots Fired 84 | . 66 18 Gun 60 | . 60 . Cannon 24 | . 6 18 Launcher . | . . . Special . | . . . Kinetic 46 | . 46 . Thermal 38 | . 20 18 Explosive . | . . . Electromagnetic . | . . . Robot Hit Streak 8 | . 8 6 Robot Miss Streak 6 | . 5 6 Penetration Max . | . . . Secondary Targets 2 | . 2 . Max Gunslinging Chain 1 | . 1 . Shots Hit Robots 45 | . 38 7 Core Hits 24 | . 20 4 Critical Hits 2 | . 2 . Critical Kills . | . . . Critical Parts Destroyed 2 | . 2 . Melee Attacks . | . . . Impact . | . . . Slashing . | . . . Piercing . | . . . Sneak Attacks . | . . . Combat Hostiles . | . . . Follow-up Attacks . | . . . Damage Inflicted 629 | . 507 122 Guns 407 | . 407 . Cannons 222 | . 100 122 Explosions . | . . . Melee . | . . . Ramming . | . . . Kinetic 257 | . 257 . Thermal 372 | . 250 122 Explosive . | . . . Electromagnetic . | . . . Impact . | . . . Slashing . | . . . Piercing . | . . . Highest Corruption . | . . . Average Corruption . | . . . Corruption Purged . | . . . Overload Shots . | . . . Overflow Damage 12 | . 12 . Projectiles 12 | . 12 . Explosions . | . . . Melee . | . . . Knockbacks . | . . . Impact . | . . . Kinetic . | . . . Secondary . | . . . Self-Inflicted Damage . | . . . Shots . | . . . Rammed . | . . . Targets Rammed . | . . . Kicked . | . . . Crushed . | . . . Highest Temperature 340 | . 313 340 Average Temperature 158 | . 149 175 Received Heat Transfer 396 | . 276 120 Effects 2 | . . 2 Interference 2 | . . 2 Siege Activations . | . . . Robots Corrupted . | . . . Combat Hostiles . | . . . Parts Fried . | . . . Impact Corruptions . | . . . Robots Melted . | . . . Combat Hostiles . | . . . Parts Melted 2 | . 2 . Heat Transferred 851 | . 629 222 Parts Sabotaged . | . . . Parts Stolen . | . . . Parts Stripped . | . . . Power Chain Reactions . | . . . Missiles Intercepted . | . . . Alert | -11 -10 -10 ------- Run | Scr Mat Min Peak Influence 222 | . 222 8 Average Influence 102 | . 121 6 Maximum Alert Level 1 | . 1 . Low Security (%) 75 | . 70 100 Level 1 24 | . 29 . Level 2 . | . . . Level 3 . | . . . Level 4 . | . . . Level 5 . | . . . High Security . | . . . Max Security . | . . . Squads Dispatched 3 | . 3 . Investigation 1 | . 1 . Extermination . | . . . Reinforcement 2 | . 2 . Assault . | . . . Garrison . | . . . Intercept . | . . . Construction Impeded . | . . . Haulers Reinforced . | . . . Stealth | -11 -10 -10 --------- Run | Scr Mat Min Distress Signals . | . . . Communications Jammed . | . . . Distress Signals . | . . . Times Spotted 33 | . 20 13 Peak Tracking Total 14 | . 7 14 Tactical Retreats 2 | . . 2 Traps | -11 -10 -10 ------- Run | Scr Mat Min Traps Triggered 1 | . 1 . Indirectly . | . . . Trap Hack Attempts . | . . . Triggered . | . . . Disarmed . | . . . Reprogrammed . | . . . Reused . | . . . Traps Extracted . | . . . Installed . | . . . Triggered . | . . . Machines | -11 -10 -10 ---------- Run | Scr Mat Min Machines Disabled . | . . . Max in Single Turn . | . . . Machines Sabotaged . | . . . Garrisons Compromised . | . . . Overloaded Fab Kills . | . . . Fab Network Shutdowns . | . . . Hacking | -11 -10 -10 --------- Run | Scr Mat Min Machines Accessed 1 | . 1 . Terminals 1 | . 1 . Fabricators . | . . . Repair Stations . | . . . Recycling Units . | . . . Scanalyzers . | . . . Garrison Access . | . . . Total Hacks 1 | . 1 . Successful 1 | . 1 . Failed . | . . . Catastrophic . | . . . Database Lockouts . | . . . Manual . | . . . Terminals 1 | . 1 . Fabricators . | . . . Repair Stations . | . . . Recycling Units . | . . . Scanalyzers . | . . . Garrison Access . | . . . Terminal Hacks 1 | . 1 . Branch Access Points 1 | . 1 . Fabricator Hacks . | . . . Repair Station Hacks . | . . . Recycling Unit Hacks . | . . . Scanalyzer . | . . . Garrison Access Hacks . | . . . Unauthorized Hacks . | . . . Terminals . | . . . Fabricators . | . . . Repair Stations . | . . . Recycling Units . | . . . Scanalyzers . | . . . Garrison Access . | . . . Data Cores Recovered . | . . . Used . | . . . Hacking Detections . | . . . Full Trace Events . | . . . Feedback Events . | . . . Feedback Blocked . | . . . Robot Schematics Acquired . | . . . Robots Built . | . . . Matter . | . . . Time . | . . . Total Robot Build Rating . | . . . Part Schematics Acquired . | . . . Parts Built . | . . . Matter . | . . . Time . | . . . Total Part Build Rating . | . . . Parts Repaired . | . . . Time . | . . . Parts Recycled . | . . . Recycled Matter . | . . . Retrieved Matter . | . . . Retrieved Components . | . . . Parts Scanalyzed . | . . . Part Schematics Acquired . | . . . Parts Damaged . | . . . Bothacking | -11 -10 -10 ------------ Run | Scr Mat Min Used RIF Installer . | . . . Robots Hacked . | . . . Non-combat . | . . . Combat . | . . . Robot Hacks Applied . | . . . Relay Couplers Released . | . . . Robots Rewired . | . . . Allies Hacked . | . . . Hacks Repelled . | . . . Allies | -11 -10 -10 -------- Run | Scr Mat Min Total Allies . | . . . Largest Group . | . . . Highest-Rated Group . | . . . Highest-Rated Ally . | . . . Total Orders . | . . . Ally Attacks . | . . . Total Damage . | . . . Kills . | . . . Allies Corrupted . | . . . Allies Melted . | . . . Intel | -11 -10 -10 ------- Run | Scr Mat Min Robot Analysis Total . | . . . Derelict Logs Recovered . | . . . Drone Launches . | . . . Drone Recoveries . | . . . Exploration | -11 -10 -10 ------------- Run | Scr Mat Min Turns Passed 506 | . 422 84 Spaces Moved 248 | 1 225 22 Core . | . . . Treads . | . . . Legs 248 | 1 225 22 Wheels . | . . . Hover . | . . . Flight . | . . . Fastest Speed 120 | 120 120 150 Average Speed 129 | 120 127 150 Slowest Speed 150 | 120 150 150 Overloaded Moves . | . . . Propulsion Burnouts . | . . . Robots Hopped . | . . . Cave-ins Triggered . | . . . Exploration Rate (%) 20 | 2 44 15 Regions Visited 2 Branch Regions 1 Pre-discovered Areas . | . . . Known Exits Taken 1 | . 1 . Unknown Exits Taken 1 | 1 . . Scrap Searched . | . . . Spaces Dug . | . . . Terrain Destroyed 1 | . . 1 Melee . | . . . Projectile 1 | . . 1 AOE . | . . . Actions | -11 -10 -10 --------- Run | Scr Mat Min Total 356 | . 300 56 Wait 43 | . 20 23 Move 246 | . 224 22 Hop . | . . . Pick Up 7 | . 7 . Fast Attach 5 | . 5 . Attach 2 | . 1 1 Detach . | . . . Swap 2 | . 2 . Drop 7 | . 7 . Fire 44 | . 34 10 Melee . | . . . Ram . | . . . Kick . | . . . Crush . | . . . Escape Stasis . | . . . Rewire . | . . . Trap . | . . . Miscellaneous . | . . . Route ------- -11/Scrapyard -10/Materials (discovered 2 exits: [*Mat] / *Min) -10/Mines History --------- Turn | Location | Event 1 | -11/Scrapyard | Discovered new exit (range 0) 1 | -11/Scrapyard | Entered Materials 27 | -10/Materials | Identified exit to Mines 203 | -10/Materials | Discovered new exit (range 10) 301 | -10/Materials | Build established: Mutant 423 | -10/Materials | Entered Mines 424 | -10/Mines | Assembled infested the area 443 | -10/Mines | Core integrity fell below 50% 498 | -10/Mines | Core integrity fell below 20% 507 | -10/Mines | Destroyed by D-53 Grenadier with Mini Grenade Launcher Last Messages --------------- 00444_ as-11773 destroyed. 00447_ as-14567 destroyed. 00450_ as-01001 destroyed. 00455_ Overheating: System interference. 00455_ Particle Cannon temporarily disabled. 00458_ as-27493 destroyed. 00459_ The unstable cave ceiling collapses. 00470_ as-66260 destroyed. 00492_ The unstable cave ceiling collapses. 00495_ Aluminum Leg destroyed. 00497_ Particle Cannon destroyed. 00498_ U-05 Engineer lays Concrete. 00501_ The unstable cave ceiling collapses. 00501_ U-05 Engineer builds a Wall. 00501_ Ion Engine destroyed. 00503_ Aluminum Leg destroyed. 00504_ K-01 Serf collects debris. 00505_ U-05 Engineer lays Concrete. 00505_ Particle Cannon destroyed. 00506_ U-05 Engineer lays Concrete. Map ----- +----------------------------------------------------+ | | | | | | | | | | | | | | | | | | | | | | | | | | | | | | | ???????????????????????????????????????????? | | ???????????????????????????????????????????? | | ?????????????????????####??????????????????? | | ?????????????????##### ##?????????????????? | | ?????????????##### #?????????????????? | | ????????????## #?????????????????? | | ????????????# ##?????????????????? | | ????????????# ##??????????????????? | | ????????????# #??????????????????? | | ????????????# #??????????????????? | | ????????????# @ ## #???????????????? | | ????????????# "????????? | | ????????????## ## ????????? | | ?????????????# k ????????? | | ?????????????# # r ?????????? | | ?????????????# ?????????? | | ?????????????## ??????????? | | ??????????????##u # ### ??????????? | | ?????????????? ## #??????????????? | | ????????????? d ####??????????????? | | ???????????? #??????????????????? | | ???????????? #?????????????????? | | ??????????? #?????????????????? | | ???????????? #?????????????????? | | ????????????? ?????????????????? | | ????????????### ????????????????? | | ??????????????## ???????????????? | | ???????????????# ????????????????? | | ???????????????? ??????????????????? | | ???????????????? ?????????????????????? | | ???????????????? ???????????????????????? | | ???????????????????????????????????????????? | | ???????????????????????????????????????????? | | ???????????????????????????????????????????? | | ???????????????????????????????????????????? | +----------------------------------------------------+ Best States ------------- Heat Dissipation 25 Energy Generation 10 Energy Capacity 250 Matter Stores 300 Matter Capacity 300 Sight Range 16 Terrain Scan Density 10 Evasion (%) 40 Item Schematics ----------------- None Robot Schematics ------------------ None Fabricated ------------ Nothing Alien Tech Used ----------------- None Achievements -------------- None Challenges ------------ None Game ------ Seed GammaSegregatorReconstructor Manual? 0 Play Time 00:05:14 Cumulative 320.5 hours Start 2020.06.23 @ 23:12:18 End 2020.06.28 @ 21:33:45 Sessions 2 Manual Loads 0 Difficulty Rogue Special Mode None Game No. 352 Rogue 352 Adventurer 0 Explorer 0 Win Type - Total 29 Types 17/3/2/1/2/1/3 Lore% 93 Gallery% 88 Achievement% 78 Wizard Run 0 Options --------- ASCII 0 Keyboard 0 Movement Arrows Keybinds 0 Fullscreen 2 Font 18/SmallcapsGlow Map View 76x50 Tactical HUD 1 Map Filters NONE Filters NONE Steam 1 RUN: 762e24b4-edbd-4b89-96cb-9409b1b68b31